bitfinex-derivatives/quotes_BTCF0:USTF0_20250101
["timestamp","ask_amount","ask_price","bid_price","bid_amount"]
[1735732026109,0.5,93730.0,93726.0,0.3608]
[1735732026302,0.0611,93728.0,93726.0,0.3608]
[1735732026713,0.0326,93727.0,93726.0,0.3608]
[1735732027010,0.0326,93727.0,93717.0,0.3608]
[1735732027203,0.14241652,93727.0,93717.0,0.3608]
[1735732027399,0.64241652,93727.0,93717.0,0.3608]
[1735732027605,0.5,93718.0,93717.0,0.3608]
[1735732028110,0.53051725,93727.0,93717.0,0.3608]
[1735732028323,0.47626378,93718.0,93707.0,0.00160058]
[1735732028503,0.5,93717.0,93707.0,0.00160058]
[1735732028704,0.5,93708.0,93707.0,0.00160058]
[1735732029010,0.12337637,93717.0,93707.0,0.00160058]
[1735732029208,0.8608,93718.0,93707.0,0.00160058]
[1735732029509,0.12337637,93717.0,93707.0,0.00160058]
[1735732030110,0.009,93708.0,93707.0,0.00160058]
[1735732030803,0.5,93708.0,93707.0,0.00160058]
[1735732031212,0.3608,93709.0,93707.0,0.00160058]
[1735732031406,0.009,93708.0,93707.0,0.00160058]
[1735732031801,0.509,93708.0,93707.0,0.00160058]
[1735732032005,0.009,93708.0,93707.0,0.00160058]
[1735732032917,0.3608,93709.0,93707.0,0.00160058]
[1735732033100,0.509,93708.0,93707.0,0.00160058]
[1735732034207,0.5,93708.0,93707.0,0.00160058]
[1735732034422,0.509,93708.0,93707.0,0.00160058]
[1735732040319,0.009,93708.0,93707.0,0.00160058]
[1735732040521,0.5395,93708.0,93707.0,0.00160058]
[1735732040817,0.5395,93708.0,93692.0,0.0303]
[1735732040818,0.5,93699.0,93692.0,0.0303]
[1735732041124,0.5,93698.0,93692.0,0.0303]
[1735732042524,0.3608,93693.0,93692.0,0.0303]
[1735732042824,0.3608,93693.0,93688.0,0.0333]
[1735732042825,0.5,93691.0,93688.0,0.0333]
[1735732043320,0.3608,93693.0,93688.0,0.0333]
[1735732043807,0.3648,93693.0,93688.0,0.0333]
[1735732044411,0.5,93691.0,93688.0,0.0333]
[1735732044618,0.39215846,93693.0,93688.0,0.0333]
[1735732044924,0.39215846,93693.0,93678.0,0.03]
[1735732045220,0.3608,93684.0,93679.0,0.0313]
[1735732046617,0.3608,93684.0,93679.0,0.0333]
[1735732056223,0.5,93685.0,93679.0,0.0333]
[1735732056433,0.3608,93684.0,93679.0,0.0333]
[1735732057230,0.3698,93684.0,93679.0,0.0313]
[1735732057426,0.009,93684.0,93679.0,0.0313]
[1735732057625,0.3698,93684.0,93679.0,0.0313]
[1735732063636,0.3698,93684.0,93669.0,0.3608]
[1735732063833,0.10981652,93680.0,93669.0,0.3608]
[1735732065233,0.5,93674.0,93669.0,0.3608]
[1735732065739,0.3608,93676.0,93669.0,0.3608]
[1735732065740,0.5,93673.0,93669.0,0.3608]
[1735732065931,0.5,93674.0,93669.0,0.3608]
[1735732066931,0.004,93673.0,93665.0,0.3608]
[1735732067537,0.504,93674.0,93665.0,0.3608]
[1735732067840,0.53237589,93674.0,93665.0,0.3608]
[1735732068433,0.5,93673.0,93665.0,0.3608]
[1735732069139,0.502,93673.0,93665.0,0.3608]
[1735732074443,0.002,93673.0,93665.0,0.414285]
[1735732074950,0.002,93673.0,93666.0,1.5]
[1735732075336,0.8608,93684.0,93666.0,1.8]
[1735732075650,0.5,93699.0,93687.0,0.053472]
[1735732075944,0.5,93699.0,93688.0,0.0609]
[1735732076148,0.5,93699.0,93688.0,0.0911]
[1735732076351,0.5,93700.0,93688.0,0.0911]
[1735732076649,0.38473101,93694.0,93688.0,0.0911]
[1735732076951,0.39373101,93694.0,93688.0,0.0911]
[1735732077146,0.3698,93694.0,93693.0,0.053469]
[1735732077651,0.3698,93694.0,93688.0,0.0911]
[1735732079545,0.3608,93694.0,93688.0,0.0911]
[1735732079850,0.3628,93694.0,93688.0,0.0911]
[1735732080840,0.3628,93694.0,93688.0,0.0609]
[1735732081746,0.002,93694.0,93688.0,0.0609]
[1735732082452,0.002,93694.0,93692.0,0.3608]
[1735732082753,0.002,93694.0,93692.0,0.41427]
[1735732083753,0.004,93694.0,93692.0,0.41427]
[1735732084554,0.004,93694.0,93692.0,0.3608]
[1735732086354,0.00160137,93703.0,93692.0,0.3608]
[1735732086355,0.00160137,93703.0,93692.0,0.3658]
[1735732086653,0.001,93694.0,93692.0,0.3658]
[1735732087751,0.0316,93693.0,93692.0,0.3608]
[1735732087956,0.5,93690.0,93684.0,0.3608]
[1735732088261,0.5,93687.0,93684.0,0.3608]
[1735732088456,0.0316,93693.0,93684.0,0.3608]
[1735732088651,0.5316,93693.0,93684.0,0.3608]
[1735732088974,0.0316,93693.0,93684.0,0.3608]
[1735732089353,0.5316,93693.0,93684.0,0.3608]
[1735732089754,0.0316,93693.0,93684.0,0.3608]
[1735732089954,0.5316,93693.0,93684.0,0.3608]
[1735732090160,0.5316,93693.0,93684.0,0.3618]
[1735732090661,0.5316,93693.0,93673.0,0.3608]
[1735732090850,0.5406,93693.0,93684.0,0.001]
[1735732091356,0.56243719,93693.0,93684.0,0.001]
[1735732092665,0.55343719,93693.0,93673.0,0.3608]
[1735732092960,0.55643719,93693.0,93673.0,0.3608]
[1735732093363,0.56243719,93693.0,93684.0,0.001]
[1735732094059,0.55643719,93693.0,93681.0,0.3608]
[1735732094557,0.3608,93688.0,93673.0,0.3608]
[1735732095357,0.55643719,93693.0,93673.0,0.3608]
[1735732095659,0.56243719,93693.0,93684.0,0.001]
[1735732096168,0.55343719,93693.0,93673.0,0.3608]
[1735732096458,0.003,93688.0,93673.0,0.3608]
[1735732096862,0.3608,93689.0,93684.0,0.001]
[1735732097568,0.3608,93689.0,93673.0,0.3608]
[1735732099155,0.3698,93689.0,93684.0,0.001]
[1735732099565,0.3608,93689.0,93673.0,0.3608]
[1735732099763,0.3638,93689.0,93673.0,0.3608]
[1735732100169,0.3608,93689.0,93673.0,0.3608]
[1735732100370,0.3698,93689.0,93684.0,0.001]
[1735732102366,0.3608,93689.0,93671.0,0.0306]
[1735732102577,0.3608,93679.0,93663.0,0.3608]
[1735732103267,0.5,93672.0,93663.0,0.3608]
[1735732103462,0.10968805,93673.0,93663.0,0.3608]
[1735732103662,0.10968805,93673.0,93654.0,0.36240126]
[1735732103663,0.3608,93665.0,93654.0,0.36240126]
[1735732103873,0.5,93663.0,93654.0,0.36240126]
[1735732104067,0.0314,93662.0,93654.0,0.36240126]
[1735732105070,0.5,93655.0,93654.0,0.36240126]
[1735732105578,0.0314,93662.0,93654.0,0.36240126]
[1735732105771,0.5314,93662.0,93654.0,0.36240126]
[1735732106173,0.5,93661.0,93654.0,0.36240126]
[1735732106470,0.5,93661.0,93655.0,0.004]
[1735732106860,0.5,93661.0,93654.0,0.36240126]
[1735732107060,0.5,93661.0,93654.0,0.36640126]
[1735732107565,0.5,93655.0,93654.0,0.36240126]
[1735732109178,0.5,93655.0,93654.0,0.36640126]
[1735732111477,0.5,93655.0,93654.0,0.00560126]
[1735732112070,0.3608,93657.0,93654.0,0.00560126]
[1735732112565,0.5,93655.0,93654.0,0.00560126]
[1735732112975,0.3608,93657.0,93654.0,0.00560126]
[1735732113572,0.5,93655.0,93654.0,0.00560126]
[1735732113774,0.15293736,93656.0,93654.0,0.00560126]
[1735732113971,0.11988035,93655.0,93654.0,0.00560126]
[1735732114176,0.0306,93656.0,93654.0,0.00560126]
[1735732114577,0.11988035,93655.0,93654.0,0.00560126]
[1735732115775,0.11988035,93655.0,93654.0,0.00260126]
[1735732116166,0.61988035,93655.0,93654.0,0.00260126]
[1735732116580,0.11988035,93655.0,93654.0,0.00260126]
[1735732116775,0.61988035,93655.0,93654.0,0.00260126]
[1735732117086,0.11988035,93655.0,93654.0,0.00260126]
[1735732117384,0.61988035,93655.0,93654.0,0.00260126]
[1735732117582,0.11988035,93655.0,93654.0,0.00260126]
[1735732117879,0.61988035,93655.0,93654.0,0.001]
[1735732118077,0.61988035,93655.0,93631.0,0.0329]
[1735732118288,0.3608,93645.0,93631.0,0.0329]
[1735732118582,0.5,93635.0,93631.0,0.0329]
[1735732118884,0.5,93636.0,93631.0,0.0329]
[1735732119376,0.5,93635.0,93631.0,0.0379]
[1735732120582,0.5,93635.0,93631.0,0.005]
[1735732120774,0.501,93635.0,93631.0,0.005]
[1735732120974,0.001,93635.0,93631.0,0.005]
[1735732121575,0.0322,93634.0,93631.0,0.005]
[1735732122368,0.5,93627.0,93621.0,0.0325]
[1735732123579,0.5,93627.0,93621.0,0.0335]
[1735732125489,0.5,93627.0,93623.0,0.3608]
[1735732126785,0.52189136,93627.0,93623.0,0.3608]
[1735732127588,0.5,93627.0,93623.0,0.3608]
[1735732130480,0.0322,93634.0,93623.0,0.3608]
[1735732130481,0.0322,93634.0,93624.0,0.3608]
[1735732130787,0.3608,93661.0,93640.0,0.0535]
[1735732130981,0.3608,93661.0,93643.0,0.053498]
[1735732131185,0.5,93660.0,93643.0,0.053498]
[1735732131583,0.02204163,93655.0,93643.0,0.053498]
[1735732131891,0.02204163,93655.0,93641.0,0.0615]
[1735732132378,0.00360225,93646.0,93643.0,0.3608]
[1735732133284,0.00260225,93646.0,93643.0,0.3608]
[1735732134894,0.00160225,93646.0,93643.0,0.3608]
[1735732135078,0.00360225,93646.0,93643.0,0.3608]
[1735732135484,0.00160225,93646.0,93643.0,0.3608]
[1735732135680,0.00460225,93646.0,93643.0,0.3608]
[1735732135984,0.00460225,93646.0,93641.0,0.3919]
[1735732136185,0.00460225,93646.0,93641.0,0.3608]
[1735732136394,0.00460225,93646.0,93632.0,0.0313]
[1735732136395,0.5,93645.0,93632.0,0.0313]
[1735732136585,0.5,93643.0,93632.0,0.0313]
[1735732136984,0.60968805,93643.0,93632.0,0.0313]
[1735732137385,0.5,93636.0,93628.0,0.0332]
[1735732137894,0.3608,93637.0,93628.0,0.0332]
[1735732138281,0.5,93636.0,93628.0,0.0332]
[1735732138486,0.5,93632.0,93628.0,0.0332]
[1735732138887,0.5,93633.0,93628.0,0.0332]
[1735732140286,0.502,93633.0,93628.0,0.0332]
[1735732142394,0.34087247,93633.0,93628.0,0.0332]
[1735732145794,0.34087247,93633.0,93627.0,0.3608]
[1735732150006,0.34087247,93633.0,93626.0,0.053507]
[1735732150207,0.34087247,93633.0,93627.0,0.3608]
[1735732150891,0.002,93633.0,93627.0,0.414307]
[1735732151095,0.001,93633.0,93627.0,0.414307]
[1735732151698,0.01902346,93637.0,93627.0,0.414307]
[1735732151699,0.01902346,93637.0,93632.0,0.053504]
[1735732151900,0.002,93633.0,93632.0,0.053504]
[1735732154519,0.004,93637.0,93636.0,0.053502]
[1735732154808,0.004,93637.0,93636.0,0.414302]
[1735732155207,0.02092712,93646.0,93637.0,0.053501]
[1735732156302,0.02092712,93646.0,93636.0,0.3608]
[1735732156502,0.02092712,93646.0,93638.0,0.053501]
[1735732157403,0.02492712,93646.0,93638.0,0.053501]
[1735732160006,0.02492712,93646.0,93642.0,7.053e-05]
[1735732160406,0.02692712,93646.0,93642.0,7.053e-05]
[1735732160809,0.02092712,93646.0,93642.0,7.053e-05]
[1735732161003,0.02492712,93646.0,93642.0,7.053e-05]
[1735732161400,0.02092712,93646.0,93642.0,7.053e-05]
[1735732161601,0.02692712,93646.0,93642.0,7.053e-05]
[1735732162016,0.02092712,93646.0,93642.0,7.053e-05]
[1735732162305,0.02892712,93646.0,93642.0,7.053e-05]
[1735732162703,0.52892712,93646.0,93642.0,7.053e-05]
[1735732162904,0.11350805,93645.0,93642.0,7.053e-05]
[1735732163306,0.61350805,93645.0,93642.0,7.053e-05]
[1735732163509,0.3608,93643.0,93642.0,7.053e-05]
[1735732163907,0.47293149,93643.0,93642.0,7.053e-05]
[1735732164612,0.47293149,93643.0,93642.0,3.053e-05]
[1735732165217,0.48193149,93643.0,93642.0,3.053e-05]
[1735732168105,0.98193149,93643.0,93642.0,3.053e-05]
[1735732168509,0.48193149,93643.0,93642.0,3.053e-05]
[1735732168816,0.98193149,93643.0,93642.0,3.053e-05]
[1735732169016,0.48193149,93643.0,93642.0,3.053e-05]
[1735732169318,0.98193149,93643.0,93642.0,3.053e-05]
[1735732169708,0.48193149,93643.0,93642.0,3.053e-05]
[1735732169901,0.98193149,93643.0,93642.0,3.053e-05]
[1735732170312,0.48193149,93643.0,93642.0,3.053e-05]
[1735732170618,0.97293149,93643.0,93642.0,3.053e-05]
[1735732170806,0.48193149,93643.0,93642.0,3.053e-05]
[1735732171203,0.97293149,93643.0,93642.0,3.053e-05]
[1735732171415,0.48193149,93643.0,93642.0,3.053e-05]
[1735732171809,0.98193149,93643.0,93642.0,3.053e-05]
[1735732172018,0.48193149,93643.0,93642.0,3.053e-05]
[1735732172319,0.98193149,93643.0,93642.0,3.053e-05]
[1735732172621,0.48193149,93643.0,93642.0,3.053e-05]
[1735732173023,0.98193149,93643.0,93642.0,3.053e-05]
[1735732173320,0.48193149,93643.0,93642.0,3.053e-05]
[1735732173519,0.98193149,93643.0,93642.0,3.053e-05]
[1735732173713,0.48193149,93643.0,93642.0,3.053e-05]
[1735732173914,0.98193149,93643.0,93642.0,3.053e-05]
[1735732174321,0.48193149,93643.0,93642.0,3.053e-05]
[1735732174533,0.98193149,93643.0,93642.0,3.053e-05]
[1735732175514,0.98193149,93643.0,93623.0,0.3608]
[1735732175724,0.10968805,93640.0,93623.0,0.3608]
[1735732176114,0.5,93630.0,93623.0,0.3608]
[1735732176821,0.5,93630.0,93623.0,0.3578]
[1735732177224,0.60968805,93633.0,93623.0,0.3578]
[1735732177724,0.5,93632.0,93623.0,0.3578]
[1735732178513,0.5,93630.0,93623.0,0.3578]
[1735732178823,0.10968805,93633.0,93623.0,0.3578]
[1735732178824,0.5,93632.0,93623.0,0.3578]
[1735732180617,0.5319,93632.0,93623.0,0.3578]
[1735732180823,0.0319,93632.0,93623.0,0.3578]
[1735732181017,0.5319,93632.0,93623.0,0.3578]
[1735732181529,0.3608,93630.0,93623.0,0.3578]
[1735732181820,0.3608,93630.0,93617.0,0.0304]
[1735732182027,0.5,93620.0,93617.0,0.0304]
[1735732184015,0.5,93620.0,93612.0,0.36240207]
[1735732184326,0.5,93617.0,93612.0,0.36240207]
[1735732184928,0.5,93616.0,93612.0,0.36240207]
[1735732185316,0.5,93616.0,93612.0,0.36540207]
[1735732185723,0.5,93615.0,93612.0,0.36540207]
[1735732186122,0.001,93620.0,93612.0,0.36540207]
[1735732186534,0.5,93617.0,93612.0,0.36540207]
[1735732186822,0.5,93616.0,93612.0,0.36540207]
[1735732187030,0.501,93616.0,93612.0,0.36340207]
[1735732187219,0.001,93616.0,93612.0,0.36340207]
[1735732187419,0.501,93616.0,93612.0,0.36340207]
[1735732188330,0.5,93616.0,93612.0,0.36340207]
[1735732188831,0.501,93616.0,93612.0,0.36240207]
[1735732190625,0.52023668,93616.0,93612.0,0.36240207]
[1735732191133,0.34683491,93616.0,93612.0,0.36240207]
[1735732192622,0.34683491,93616.0,93612.0,0.00160207]
[1735732199544,0.02023668,93616.0,93612.0,0.00160207]
[1735732207536,0.3608,93613.0,93612.0,0.00160207]
[1735732208235,0.3608,93613.0,93612.0,0.00090106]
[1735732209035,0.3608,93613.0,93600.0,0.1]
[1735732209339,0.07213437,93610.0,93600.0,0.1]
[1735732209741,0.5,93606.0,93600.0,0.1]
[1735732209942,0.5,93605.0,93600.0,0.1]
[1735732210537,0.3608,93601.0,93600.0,0.1]
[1735732216247,0.8608,93601.0,93600.0,0.1]
[1735732216445,0.3608,93601.0,93600.0,0.1]
[1735732216844,0.8608,93601.0,93600.0,0.1]
[1735732217247,0.3608,93601.0,93600.0,0.1]
[1735732217553,0.8618,93601.0,93600.0,0.1]
[1735732218044,0.8618,93601.0,93585.0,0.3608]
[1735732218240,0.3608,93592.0,93582.0,0.0301]
[1735732219048,0.5,93591.0,93582.0,0.0301]
[1735732219357,0.3608,93592.0,93582.0,0.0301]
[1735732219843,0.3618,93592.0,93582.0,0.0301]
[1735732220240,0.3608,93592.0,93582.0,0.0301]
[1735732220451,0.001,93591.0,93582.0,0.0301]
[1735732222147,0.3618,93592.0,93584.0,0.3608]
[1735732222659,0.3608,93592.0,93584.0,0.3608]
[1735732222954,0.001,93591.0,93584.0,0.3608]
[1735732223455,0.3618,93592.0,93584.0,0.3608]
[1735732225049,0.37938179,93592.0,93584.0,0.3608]
[1735732225244,0.37838179,93592.0,93584.0,0.3608]
[1735732225450,0.001,93591.0,93584.0,0.3608]
[1735732225848,0.37938179,93592.0,93584.0,0.3608]
[1735732228946,0.01858179,93592.0,93577.0,0.0308]
[1735732229149,0.01858179,93592.0,93580.0,0.3608]
[1735732229849,0.001,93592.0,93590.0,0.3608]
[1735732230049,0.5,93620.0,93592.0,0.053527]
[1735732230358,0.01766724,93614.0,93610.0,0.3608]
[1735732230658,0.5,93619.0,93611.0,0.0317]
[1735732231359,0.5,93618.0,93611.0,0.0317]
[1735732231760,0.5,93618.0,93611.0,0.0626]
[1735732231951,0.5,93619.0,93611.0,0.0626]
[1735732232453,0.507,93619.0,93611.0,0.0626]
[1735732232846,0.007,93618.0,93611.0,0.0626]
[1735732235063,0.507,93619.0,93611.0,0.0626]
[1735732235548,0.007,93618.0,93611.0,0.0626]
[1735732236148,0.5,93619.0,93611.0,0.0626]
[1735732236149,0.507,93619.0,93611.0,0.0626]
[1735732237859,0.007,93618.0,93611.0,0.0626]
[1735732238465,0.507,93619.0,93611.0,0.0626]
[1735732239162,0.007,93618.0,93611.0,0.0626]
[1735732240665,0.5,93619.0,93611.0,0.0626]
[1735732240861,0.507,93619.0,93611.0,0.0626]
[1735732241466,0.007,93618.0,93611.0,0.0626]
[1735732241966,0.5,93619.0,93611.0,0.0626]
[1735732242165,0.507,93619.0,93611.0,0.0626]
[1735732242767,0.007,93618.0,93611.0,0.0626]
[1735732244267,0.507,93619.0,93611.0,0.0626]
[1735732244868,0.007,93618.0,93611.0,0.0626]
[1735732245459,0.507,93619.0,93611.0,0.0626]
[1735732247470,0.5,93619.0,93611.0,0.0626]
[1735732247772,0.007,93618.0,93611.0,0.0626]
[1735732248172,0.507,93619.0,93611.0,0.0626]
[1735732249067,0.007,93619.0,93612.0,0.0303]
[1735732249269,0.007,93619.0,93611.0,0.0626]
[1735732250777,0.3608,93620.0,93611.0,0.0626]
[1735732250975,0.007,93619.0,93611.0,0.0626]
[1735732251373,0.37833147,93620.0,93611.0,0.0626]
[1735732251673,0.007,93619.0,93611.0,0.0626]
[1735732252577,0.38533147,93620.0,93611.0,0.0626]
[1735732253978,0.37833147,93620.0,93611.0,0.0626]
[1735732254278,0.007,93619.0,93611.0,0.0626]
[1735732254677,0.38533147,93620.0,93611.0,0.0626]
[1735732264775,0.38533147,93620.0,93610.0,0.3608]
[1735732265079,0.15432582,93619.0,93610.0,0.3608]
[1735732265280,0.15432582,93619.0,93588.0,0.3608]
[1735732265490,0.07210393,93604.0,93588.0,0.3608]
[1735732265681,0.0651,93603.0,93588.0,0.3608]
[1735732265879,0.3608,93600.0,93588.0,0.3608]
[1735732266077,0.5,93593.0,93588.0,0.3608]
[1735732266275,0.5,93590.0,93576.0,0.0617]
[1735732266492,0.57210393,93590.0,93576.0,0.0617]
[1735732266982,0.57210393,93590.0,93584.0,0.3608]
[1735732267389,0.07310393,93590.0,93584.0,0.3608]
[1735732268290,0.12390613,93589.0,93576.0,0.001]
[1735732268492,0.12390613,93589.0,93566.0,0.3608]
[1735732268493,0.5,93580.0,93566.0,0.3608]
[1735732268680,0.5954,93579.0,93566.0,0.3608]
[1735732269290,0.0954,93579.0,93566.0,0.3608]
[1735732274193,0.11088054,93579.0,93566.0,0.3608]
[1735732275185,0.11088054,93579.0,93566.0,0.414342]
[1735732276795,0.11088054,93579.0,93566.0,0.3608]
[1735732276989,0.11088054,93579.0,93567.0,0.053541]
[1735732277397,0.11088054,93579.0,93568.0,0.053541]
[1735732277594,0.0314,93579.0,93566.0,0.3608]
[1735732277787,0.0314,93579.0,93569.0,0.05354]
[1735732278889,0.0314,93579.0,93570.0,0.05354]
[1735732280893,0.0314,93579.0,93571.0,0.115339]
[1735732281898,0.0314,93579.0,93572.0,0.3608]
[1735732283290,0.0314,93579.0,93572.0,0.414338]
[1735732291603,0.0314,93579.0,93572.0,0.053538]
[1735732291805,0.0314,93579.0,93572.0,0.414338]
[1735732296503,0.0314,93579.0,93572.0,0.053538]
[1735732296708,0.0314,93579.0,93572.0,0.3608]
[1735732296999,0.5,93576.0,93572.0,0.3608]
[1735732304805,0.0314,93579.0,93572.0,0.3608]
[1735732307307,0.0314,93579.0,93573.0,1.5]
[1735732307907,0.0314,93579.0,93572.0,0.3608]
[1735732308614,0.0324,93579.0,93572.0,0.3608]
[1735732309714,0.0324,93579.0,93563.0,0.053543]
[1735732310016,0.0324,93579.0,93572.0,0.3608]
[1735732310413,0.0314,93579.0,93572.0,0.3608]
[1735732310913,0.0314,93579.0,93563.0,0.053543]
[1735732311111,0.0314,93579.0,93572.0,0.3608]
[1735732311307,0.0324,93579.0,93572.0,0.3608]
[1735732311507,0.0651,93579.0,93572.0,0.3608]
[1735732311709,0.5651,93579.0,93572.0,0.3608]
[1735732311911,0.0651,93579.0,93572.0,0.3608]
[1735732312127,0.001,93579.0,93572.0,0.3608]
[1735732312815,0.51524267,93580.0,93572.0,0.3608]
[1735732313909,0.01524267,93580.0,93572.0,0.3608]
[1735732314209,0.5,93581.0,93572.0,0.3608]
[1735732315518,0.5,93580.0,93572.0,0.3608]
[1735732315710,0.01540868,93587.0,93572.0,0.6608]
[1735732316014,0.5,93610.0,93583.0,0.3608]
[1735732316221,0.5,93610.0,93598.0,0.3608]
[1735732316518,0.5,93609.0,93598.0,0.3608]
[1735732316717,0.5152381,93609.0,93598.0,0.3608]
[1735732317908,0.01060321,93599.0,93598.0,0.3608]
[1735732324623,0.0251684,93599.0,93598.0,0.3608]
[1735732324817,0.0577684,93599.0,93598.0,0.3608]
[1735732325911,0.0577684,93599.0,93598.0,0.3005275]
[1735732327721,0.0577684,93599.0,93585.0,0.0325]
[1735732327722,0.0899684,93599.0,93585.0,0.0325]
[1735732328323,0.5,93593.0,93585.0,0.0325]
[1735732329012,0.5,93593.0,93584.0,0.0306]
[1735732329608,0.506,93593.0,93584.0,0.0306]
[1735732333115,0.006,93593.0,93592.0,0.3608]
[1735732333325,0.006,93593.0,93592.0,0.414327]
[1735732333515,0.006,93593.0,93592.0,1.914327]
[1735732334207,0.006,93593.0,93592.0,0.414327]
[1735732334415,0.009,93593.0,93592.0,0.414327]
[1735732347447,0.02033595,93593.0,93592.0,0.3608]
[1735732347754,0.009,93593.0,93592.0,0.3608]
[1735732355738,0.009,93593.0,93590.0,0.053528]
[1735732355929,0.009,93593.0,93592.0,0.3608]
[1735732361538,0.0308,93598.0,93592.0,0.414327]
[1735732363723,0.005,93593.0,93592.0,0.414327]
[1735732364131,0.005,93598.0,93592.0,0.3608]
[1735732364331,0.005,93598.0,93597.0,0.053524]
[1735732364732,0.35807942,93602.0,93592.0,0.3608]
[1735732364941,0.35807942,93602.0,93600.0,0.414322]
[1735732366640,0.01173296,93602.0,93600.0,0.414322]
[1735732366826,0.07211794,93610.0,93600.0,0.414322]
[1735732367239,0.3722108,93608.0,93600.0,0.414322]
[1735732367636,0.005,93602.0,93600.0,0.414322]
[1735732368031,0.3782108,93608.0,93600.0,0.414322]
[1735732368628,0.3792108,93608.0,93600.0,0.414322]
[1735732370943,0.3792108,93608.0,93600.0,0.3608]
[1735732371741,0.0184108,93608.0,93600.0,0.3608]
[1735732372642,0.3608,93601.0,93580.0,0.3608]
[1735732372943,0.3608,93587.0,93580.0,0.3608]
[1735732373540,0.0301,93589.0,93580.0,0.3608]
[1735732373941,0.0301,93589.0,93580.0,0.3618]
[1735732374338,0.0301,93589.0,93580.0,0.3608]
[1735732374642,0.0301,93589.0,93580.0,0.3618]
[1735732375046,0.0341,93589.0,93580.0,0.3608]
[1735732376749,0.0301,93589.0,93580.0,0.3608]
[1735732376945,0.0331,93589.0,93580.0,0.3608]
[1735732377936,0.0447125,93589.0,93580.0,0.3608]
[1735732378546,0.0447125,93589.0,93586.0,0.3608]
[1735732378742,0.0447125,93589.0,93584.0,0.3608]
[1735732380246,0.0427125,93589.0,93584.0,0.3608]
[1735732380549,0.5,93588.0,93584.0,0.3608]
[1735732383043,0.503,93588.0,93584.0,0.3608]
[1735732384153,0.5,93587.0,93584.0,0.3608]
[1735732385051,0.003,93588.0,93584.0,0.3608]
[1735732385743,0.5,93587.0,93584.0,0.3608]
[1735732385942,0.003,93588.0,93584.0,0.3608]
[1735732386443,0.003,93588.0,93579.0,0.00160267]
[1735732386654,0.5,93587.0,93579.0,0.00160267]
[1735732386951,0.5,93584.0,93579.0,0.00160267]
[1735732387351,0.5,93587.0,93579.0,0.00160267]
[1735732388153,0.503,93587.0,93579.0,0.00160267]
[1735732393950,0.5,93582.0,93579.0,0.00160267]
[1735732395058,0.503,93582.0,93579.0,0.00160267]
[1735732401854,0.503,93582.0,93577.0,0.414336]
[1735732403858,0.5,93582.0,93577.0,0.414336]
[1735732404067,0.502,93582.0,93577.0,0.414336]
[1735732406362,0.502,93582.0,93577.0,0.053536]
[1735732406561,0.502,93582.0,93577.0,0.414336]
[1735732406763,0.002,93582.0,93577.0,0.414336]
[1735732407269,0.502,93582.0,93577.0,0.053536]
[1735732407464,0.502,93582.0,93577.0,0.414336]
[1735732407666,0.002,93582.0,93577.0,0.053536]
[1735732407858,0.002,93582.0,93577.0,0.414336]
[1735732408054,0.502,93582.0,93577.0,0.414336]
[1735732415468,0.502,93582.0,93566.0,0.3608]
[1735732415670,0.07211794,93576.0,93567.0,0.053541]
[1735732416067,0.0311,93575.0,93567.0,0.053541]
[1735732416574,0.031,93574.0,93567.0,0.053541]
[1735732417664,0.031,93574.0,93567.0,0.054541]
[1735732418068,0.031,93574.0,93567.0,0.053541]
[1735732418271,0.031,93574.0,93567.0,0.054541]
[1735732424968,0.031,93574.0,93567.0,0.001]
[1735732427178,0.5,93578.0,93567.0,0.001]
[1735732427473,0.01,93654.0,93567.0,0.001]
[1735732427474,0.5,93582.0,93574.0,0.053537]
[1735732427869,0.5,93581.0,93574.0,0.053537]
[1735732428472,0.5,93581.0,93574.0,0.414337]
[1735732428675,0.5,93581.0,93574.0,0.3608]
[1735732428976,0.5,93578.0,93574.0,0.3608]
[1735732429374,0.0309,93583.0,93574.0,0.3608]
[1735732429574,0.0628,93583.0,93574.0,0.3608]
[1735732429779,0.18198944,93583.0,93574.0,0.3608]
[1735732430166,0.68198944,93583.0,93574.0,0.3608]
[1735732430565,0.3608,93580.0,93566.0,0.3608]
[1735732430766,0.07211794,93576.0,93566.0,0.3608]
[1735732431081,0.14466696,93575.0,93566.0,0.3608]
[1735732431673,0.14466696,93575.0,93566.0,0.3618]
[1735732432073,0.64466696,93575.0,93566.0,0.3618]
[1735732432471,0.14466696,93575.0,93566.0,0.3618]
[1735732432706,0.64466696,93575.0,93566.0,0.3618]
[1735732432982,0.14466696,93575.0,93566.0,0.3618]
[1735732433373,0.64466696,93575.0,93566.0,0.3618]
[1735732433681,0.14466696,93575.0,93566.0,0.3618]
[1735732433880,0.64466696,93575.0,93566.0,0.3618]
[1735732434572,0.64466696,93575.0,93566.0,0.3608]
[1735732434773,0.64466696,93575.0,93566.0,0.3618]
[1735732436971,0.66258731,93575.0,93566.0,0.3618]
[1735732450287,0.51792035,93575.0,93566.0,0.3618]
[1735732451684,0.51792035,93575.0,93566.0,0.3608]
[1735732451993,0.52292035,93575.0,93566.0,0.3608]
[1735732456692,0.12127048,93574.0,93566.0,0.3608]
[1735732457298,0.62127048,93574.0,93566.0,0.3608]
[1735732457599,0.12127048,93574.0,93566.0,0.3608]
[1735732457784,0.12627048,93574.0,93566.0,0.3608]
[1735732457983,0.62627048,93574.0,93566.0,0.3608]
[1735732458389,0.12627048,93574.0,93566.0,0.3608]
[1735732458595,0.62627048,93574.0,93566.0,0.3608]
[1735732458895,0.12627048,93574.0,93566.0,0.3608]
[1735732459094,0.62627048,93574.0,93566.0,0.3608]